Cogmind - Beta 16 --- EXPLORER MODE // 2026.01.20 @ 15:04:37 Player: K.K.Y. Result: Destroyed by OF-1WD(R) with Subdweller Laser Performance ------------- Evolutions (0) 0 Regions Visited (3) 600 Robots Destroyed (49) 245 Value Destroyed (1116) 1116 Prototype IDs (0) 0 Alien Tech Used (0) 0 Bonus (-812) -812 TOTAL SCORE: 1149 Bonus ------- Friendly Fire -812 Cogmind --------- Core Integrity 0/250 Matter 300/300 Energy 263/265 System Corruption 0% Temperature Cool (49) Movement Treading (240) Ox1 Location -10/Subcaves Parts ------- > --- POWER (1) -------- Improved Ion Engine > --- PROPULSION (2) --- Light Treads > --- UTILITY (3) ------ Large Storage Unit Structural Scanner > --- WEAPON (2) ------- Beam Rifle > --- INVENTORY (15) --- Light Nuclear Core Spiked Treads Spiked Treads Huge Storage Unit Structural Scanner Improved Terrain Scanner Transport Network Coupler Medium Laser Makeshift Laser Mining Laser Peak State ------------ > --- POWER ------------ Improved Ion Engine > --- PROPULSION ------- Light Treads Light Treads > --- UTILITY ---------- Improved Heat Sink Large Storage Unit Structural Scanner > --- WEAPON ----------- Beamcaster Beamcaster > --- INVENTORY -------- Ion Engine Light Nuclear Core Huge Storage Unit Structural Scanner Improved Terrain Scanner Transport Network Coupler Medium Laser Mining Laser [Rating: 20] Favorites ----------- Power Ion Engine Engine Ion Engine Propulsion Light Treads Treads Light Treads Utility Structural Scanner Device Structural Scanner Storage Large Storage Unit Weapon Beamcaster Energy Gun Beamcaster Energy Cannon Beam Cannon Special Weapon Mining Laser Build | -11 -10 -10 -10 ------- Run | Yrd Mat Min Sub Slots Evolved 1 | . 1 . . Power . | . . . . Propulsion . | . . . . Utility 1 | . 1 . . Weapon . | . . . . Parts Attached 23 | 5 9 8 1 Power 4 | 1 1 2 . Engine 4 | 1 1 2 . Core . | . . . . Reactor . | . . . . Propulsion 6 | 2 2 2 . Treads 6 | 2 2 2 . Leg . | . . . . Wheel . | . . . . Hover . | . . . . Flight . | . . . . Utility 4 | 1 2 1 . Device 3 | 1 1 1 . Storage 1 | . 1 . . Processor . | . . . . Hackware . | . . . . Protection . | . . . . Artifact . | . . . . Weapon 9 | 1 4 3 1 Energy Gun 7 | 1 3 2 1 Energy Cannon 1 | . . 1 . Ballistic Gun . | . . . . Ballistic Cannon . | . . . . Launcher . | . . . . Special Weapon 1 | . 1 . . Impact Weapon . | . . . . Slashing Weapon . | . . . . Piercing Weapon . | . . . . Special Melee Weapon . | . . . . Unidentified Prototypes . | . . . . Parts Lost 6 | . 1 1 4 Power . | . . . . Propulsion 1 | . . . 1 Utility 2 | . . 1 1 Weapon 3 | . 1 . 2 Highest Loss Streak 2 | . 1 1 2 To Critical Strikes . | . . . . Average Backups 6 | . 4 7 9 Power . | . . . 1 Propulsion . | . . . . Utility 3 | . 2 4 4 Weapon 2 | . 1 2 3 Tool/Special . | . . . . Unused Backups 7 | . . . 7 Power 1 | . . . 1 Propulsion 1 | . . . 1 Utility 4 | . . . 4 Weapon 1 | . . . 1 Tool/Special . | . . . . Average Slot Usage (%) 94 | . 87 97 99 Engine 12 | . 12 12 12 Treads 25 | . 25 25 25 Device 22 | . 22 22 24 Storage 9 | . 6 12 12 Energy Gun 22 | . 20 23 24 Peak Build Rating 20 | 5 9 20 20 Average Rating 13 | 4 7 16 19 On Entrance 8 | . 5 8 20 Avg Prop Armor Cover (%) . | . . . . Naked Turns . | . . . . Heaviest Build 39 | 6 31 39 39 Greatest Support 40 | 40 40 40 40 Greatest Overweight (x) . | . . . . Average Overweight (x) . | . . . . Largest Inventory Capacity 15 | 5 15 15 15 Average Capacity 13 | 5 10 15 15 Most Carried 10 | 4 8 10 10 Average Carried 6 | . 4 7 9 Final Capacity 15 | 5 15 15 15 Final Carried 10 | 2 6 8 10 Class Distribution -------------------- 53% | Scavenger-Mutant 46% | Hacker-Mutant Dominant Class ---------------- Hacker-Mutant | -10/Materials Scavenger-Mutant | -10/Mines Scavenger-Mutant | -10/Subcaves Resources | -11 -10 -10 -10 ----------- Run | Yrd Mat Min Sub Matter Collected 473 | 247 131 85 10 Remotely . | . . . . Salvage Created 1842 | 104 933 433 372 Parts 76 | 6 41 16 13 Haulers Intercepted 2 | . 2 . . Recyclers Shooed 3 | . 2 1 . Parts Field Recycled . | . . . . Retrieved Matter . | . . . . Parts Self-Destructed . | . . . . Prevented . | . . . . Parts Restored . | . . . . Kills | -11 -10 -10 -10 ------- Run | Yrd Mat Min Sub Combat Hostiles Destroyed 34 | . 17 6 11 Guns 30 | . 15 5 10 Cannons 1 | . . 1 . Classes Destroyed 10 | 2 6 . 2 Worker 2 | . 2 . . Tunneler 1 | 1 . . . Hauler 2 | . 2 . . Recycler 3 | 1 1 1 . Turret 2 | . . . 2 Watcher 3 | . 3 . . Swarmer 13 | . 5 2 6 Grunt 13 | . 9 4 . Artisan 1 | . . . 1 Subdweller 8 | . 3 . 5 Thug 2 | . . 2 . Best Kill Streak 6 | 2 4 2 6 Combat Bots Only 4 | . 3 2 4 Max Kills in Single Turn 2 | 1 2 1 1 Gunslinging . | . . . . Exploded . | . . . . Melee . | . . . . Uniques/NPCs Destroyed . | . . . . Combat | -11 -10 -10 -10 -------- Run | Yrd Mat Min Sub Hostile Shots Fired 229 | . 95 29 105 Missed 73 | . 33 6 34 Hits 156 | . 62 23 71 Projectile 156 | . 62 23 71 Critical Strikes 1 | . 1 . . Damage Taken 1221 | . 556 178 487 Core 252 | . 145 45 62 Absorbed by Shields . | . . . . Ignored by Resistances 781 | . 346 113 322 Core Remaining (%) 100 | 100 . . . Volleys Fired 247 | 11 80 51 105 Largest 2 | 1 2 2 2 Hottest 150 | 50 150 150 150 Shots Fired 424 | 11 123 97 193 Gun 402 | 11 122 76 193 Cannon 21 | . . 21 . Launcher . | . . . . Special 1 | . 1 . . Kinetic . | . . . . Thermal 424 | 11 123 97 193 Explosive . | . . . . Electromagnetic . | . . . . Robot Hit Streak 42 | 4 42 36 28 Robot Miss Streak 2 | 1 1 1 2 Penetration Max . | . . . . Secondary Targets 5 | . 2 1 2 Max Gunslinging Chain 1 | . 1 1 1 Shots Hit Robots 274 | 7 107 86 74 Core Hits 87 | 3 42 24 18 Critical Kills . | . . . . Critical Parts Destroyed . | . . . . Critical Strikes 22 | 1 10 2 9 Burn 22 | 1 10 2 9 Melee Attacks . | . . . . Impact . | . . . . Slashing . | . . . . Piercing . | . . . . Sneak Attacks . | . . . . Combat Hostiles . | . . . . Follow-up Attacks . | . . . . Damage Inflicted 4099 | 88 1360 1214 1437 Guns 3767 | 88 1360 882 1437 Cannons 332 | . . 332 . Explosions . | . . . . Melee . | . . . . Ramming . | . . . . Kinetic . | . . . . Thermal 4099 | 88 1360 1214 1437 Explosive . | . . . . Electromagnetic . | . . . . Impact . | . . . . Slashing . | . . . . Piercing . | . . . . Highest Corruption . | . . . . Average Corruption . | . . . . Corruption Purged . | . . . . Corruption Blocked . | . . . . Overload Shots . | . . . . Overflow Damage . | . . . . Projectiles . | . . . . Explosions . | . . . . Melee . | . . . . Knockbacks . | . . . . Impact . | . . . . Kinetic . | . . . . Secondary . | . . . . Self-Inflicted Damage . | . . . . Shots . | . . . . Rammed . | . . . . Targets Rammed . | . . . . Kicked . | . . . . Crushed . | . . . . Highest Temperature 325 | 40 325 318 48 Average Temperature 105 | 15 111 122 12 Received Heat Transfer 696 | . 282 147 267 Effects 8 | . 5 3 . Interference 5 | . 3 2 . Matter Decay 1 | . 1 . . Short Circuit 1 | . . 1 . Damage (minor) 1 | . 1 . . Siege Activations . | . . . . Martial Activations . | . . . . Shielding Activations . | . . . . Robots Disrupted . | . . . . Combat Hostiles . | . . . . Robots Corrupted . | . . . . Combat Hostiles . | . . . . Parts Fried . | . . . . Impact Corruptions . | . . . . Robots Melted 4 | . 3 . 1 Combat Hostiles 3 | . 2 . 1 Parts Melted 20 | . 9 5 6 Heat Transferred 11121 | 333 4560 2898 3330 Parts Sabotaged . | . . . . Parts Stolen . | . . . . Parts Stripped . | . . . . Power Chain Reactions . | . . . . Alert | -11 -10 -10 -10 ------- Run | Yrd Mat Min Sub Maximum Alert Level . | . . . . Low Security (%) 100 | 100 100 100 . Level 1 . | . . . . Level 2 . | . . . . Level 3 . | . . . . Level 4 . | . . . . Level 5 . | . . . . High Security . | . . . . Max Security . | . . . . Peak Influence 65 | 10 65 54 . Initial . | . . . . Average 6 | . 8 3 . Influence Increases 777 | 10 408 159 200 Destroy 0b10 Robot/C 560 | . 280 120 160 Destroy 0b10 Robot/NC 55 | 10 40 5 . Destroy Leader 120 | . 80 30 10 Successful Hack 4 | . 4 . . Disable Machine 8 | . 4 4 . Lose Combat Pursuer 30 | . . . 30 Influence Decreases 777 | 10 408 159 200 Time Decay 777 | 10 408 159 200 Squads Dispatched 1 | . 1 . . Investigation 1 | . 1 . . Extermination . | . . . . Reinforcement . | . . . . Assault . | . . . . Garrison . | . . . . Intercept . | . . . . Searches Triggered . | . . . . Construction Impeded . | . . . . Haulers Reinforced . | . . . . Active Scanning Responses . | . . . . Cargo Convoy Interrupts . | . . . . Stealth | -11 -10 -10 -10 --------- Run | Yrd Mat Min Sub Distress Signals 1 | . 1 . . Communications Jammed . | . . . . Distress Signals . | . . . . Times Spotted 46 | . 22 7 17 Peak Tracking Total 6 | . 4 2 6 Tactical Retreats 1 | . . . 1 Traps | -11 -10 -10 -10 ------- Run | Yrd Mat Min Sub Traps Triggered 3 | . 3 . . Indirectly . | . . . . Trap Hack Attempts . | . . . . Triggered . | . . . . Disarmed . | . . . . Reprogrammed . | . . . . Reused . | . . . . Traps Extracted . | . . . . Installed . | . . . . Triggered . | . . . . Machines | -11 -10 -10 -10 ---------- Run | Yrd Mat Min Sub Machines Disabled 3 | . 1 1 1 Max in Single Turn 1 | . 1 1 1 Machines Repaired . | . . . . Machines Dismantled . | . . . . Machines Sabotaged . | . . . . Overloaded Fab Kills . | . . . . Hacking | -11 -10 -10 -10 --------- Run | Yrd Mat Min Sub Machines Accessed 9 | . 9 . . Terminals 7 | . 7 . . Fabricators . | . . . . Repair Stations . | . . . . Recycling Units 2 | . 2 . . Scanalyzers . | . . . . Garrison Access . | . . . . Total Hacks 20 | . 20 . . Successful 17 | . 17 . . Failed 3 | . 3 . . Catastrophic . | . . . . Database Lockouts . | . . . . Manual 18 | . 18 . . Terminals 18 | . 18 . . Fabricators . | . . . . Repair Stations . | . . . . Recycling Units 2 | . 2 . . Scanalyzers . | . . . . Garrison Access . | . . . . Terminal Hacks 8 | . 8 . . Part Schematic 8 | . 8 . . Fabricator Hacks . | . . . . Repair Station Hacks . | . . . . Recycling Unit Hacks 2 | . 2 . . Retrieve Components 2 | . 2 . . Scanalyzer . | . . . . Garrison Access Hacks . | . . . . Unauthorized Hacks 7 | . 7 . . Terminals 7 | . 7 . . Botnet 7 | . 7 . . Fabricators . | . . . . Repair Stations . | . . . . Recycling Units . | . . . . Scanalyzers . | . . . . Garrison Access . | . . . . Data Cores Recovered . | . . . . Used . | . . . . Hacking Detections 3 | . 3 . . Full Trace Events 1 | . 1 . . Feedback Events . | . . . . Feedback Blocked . | . . . . Robot Schematics Acquired . | . . . . Robots Built . | . . . . Authchips . | . . . . Time . | . . . . Total Robot Build Rating . | . . . . Part Schematics Acquired 8 | . 8 . . Parts Built . | . . . . Authchips . | . . . . Time . | . . . . Total Part Build Rating . | . . . . Part Studies Acquired . | . . . . Parts Repaired . | . . . . Time . | . . . . Parts Recycled . | . . . . Recycled Matter . | . . . . Retrieved Matter . | . . . . Retrieved Components 19 | . 19 . . Parts Scanalyzed . | . . . . Part Schematics Acquired . | . . . . Parts Damaged . | . . . . Bothacking | -11 -10 -10 -10 ------------ Run | Yrd Mat Min Sub Used RIF Installer . | . . . . Robots Hacked . | . . . . Non-combat . | . . . . Combat . | . . . . Robot Hacks Applied . | . . . . Relay Couplers Released . | . . . . Fabnet Peak Effective % . | . . . . Robots Rewired . | . . . . Allies Hacked . | . . . . Hacks Repelled . | . . . . Allies | -11 -10 -10 -10 -------- Run | Yrd Mat Min Sub Total Allies . | . . . . Largest Group . | . . . . Highest-Rated Group . | . . . . Highest-Rated Ally . | . . . . Total Orders . | . . . . Ally Attacks . | . . . . Total Damage . | . . . . Kills . | . . . . Allies Corrupted . | . . . . Allies Melted . | . . . . Intel | -11 -10 -10 -10 ------- Run | Yrd Mat Min Sub Active Infowar (turns) 4683 | 105 1615 1296 1667 Sensors 1310 | . 1248 62 . Structural 4683 | 105 1615 1296 1667 Robot Analysis Total . | . . . . Derelict Logs Recovered 1 | . . . 1 Drone Launches . | . . . . Drone Recoveries . | . . . . Exploration | -11 -10 -10 -10 ------------- Run | Yrd Mat Min Sub Turns Passed 4715 | 115 1637 1296 1667 Spaces Moved 2213 | 57 874 658 624 Core 8 | 8 . . . Treads 2205 | 49 874 658 624 Legs . | . . . . Wheels . | . . . . Hover . | . . . . Flight . | . . . . Fastest Speed 50 | 50 160 160 160 Average Speed 159 | 144 160 160 160 Slowest Speed 160 | 160 160 160 160 Overloaded Moves . | . . . . Propulsion Burnouts . | . . . . Robots Hopped . | . . . . Potential Cave-ins 1 | . . . 1 Cave-ins Triggered . | . . . . Exploration Rate (%) 60 | 4 98 99 40 Regions Visited 3 Branch Regions 2 Pre-discovered Areas . | . . . . Known Exits Taken 3 | 1 1 1 . Unknown Exits Taken . | . . . . Scrap Searched 2 | . . . 2 Spaces Dug 10 | . . . 10 Terrain Destroyed 10 | . . . 10 Melee . | . . . . Projectile 10 | . . . 10 AOE . | . . . . Terrain Rammed . | . . . . Walls Destroyed . | . . . . Machines Disabled . | . . . . Actions | -11 -10 -10 -10 --------- Run | Yrd Mat Min Sub Total 2970 | 79 986 805 1100 Wait 447 | . 7 73 367 Move 2210 | 56 873 657 624 Hop . | . . . . Pick Up 30 | 7 11 9 3 Fast Attach 1 | . 1 . . Attach 11 | 5 3 2 1 Detach 1 | . . 1 . Swap 13 | . 7 6 . Drop 10 | . 4 6 . Fire 247 | 11 80 51 105 Melee . | . . . . Ram . | . . . . Kick . | . . . . Crush . | . . . . Escape Stasis . | . . . . Rewire . | . . . . Trap . | . . . . Miscellaneous . | . . . . Route ------- -11/Scrapyard -10/Materials (discovered 4 exits: *Mat x3 / *Min) -10/Mines (discovered 3 exits: *Mat x2 / *Sub) -10/Subcaves (discovered 2 exits: *Mat / *Rec) History --------- Turn | Location | Event 5 | -11/Scrapyard | Identified exit to Materials 5 | -11/Scrapyard | Discovered exit to Materials (range 15) 116 | -11/Scrapyard | Entered Materials 116 | -10/Materials | Evolved 1 slot: Utility x1 307 | -10/Materials | Build established: Hacker-Mutant 434 | -10/Materials | Identified exit to Materials 434 | -10/Materials | Discovered exit to Materials (range 8) 816 | -10/Materials | Discovered exit to Materials (range 15) 901 | -10/Materials | Discovered exit to Materials (range 11) 1210 | -10/Materials | Identified exit to Mines 1210 | -10/Materials | Discovered exit to Mines (range 12) 1316 | -10/Materials | Derelicts attacked the area 1514 | -10/Materials | Core integrity fell below 50% 1753 | -10/Materials | Entered Mines 1804 | -10/Mines | Discovered exit to Materials (range 6) 1868 | -10/Mines | Joined a pair of Derelicts in attacking an 0b10 outpost 1924 | -10/Mines | Discovered exit to Materials (range 14) 2409 | -10/Mines | Build established: Scavenger-Mutant 2480 | -10/Mines | Received a Rocket Launcher from a helpful Derelict 2696 | -10/Mines | Identified exit to Subcaves 2696 | -10/Mines | Discovered exit to Subcaves (range 12) 3049 | -10/Mines | Entered Subcaves 3100 | -10/Subcaves | Identified exit to Materials 3100 | -10/Subcaves | Discovered exit to Materials (range 15) 3786 | -10/Subcaves | Learned Materials machine intel 3926 | -10/Subcaves | A swath of the cavern ceiling suddenly collapsed 4335 | -10/Subcaves | Identified exit to Recycling 4335 | -10/Subcaves | Discovered exit to Recycling (range 14) 4354 | -10/Subcaves | Core integrity fell below 20% 4672 | -10/Subcaves | Shifting Twisted Machinery released Spk. Treads 4680 | -10/Subcaves | Shifting Twisted Machinery released Scrap Shield 4716 | -10/Subcaves | Destroyed by OF-1WD(R) with Subdweller Laser Last Messages --------------- 04393_ Machine disabled. 04415_ Acquired 10 matter. 04640_ DM-S3V(R) suffers critical hit (Burn). 04640_ DM-S3V(R) destroyed. 04640_ Switching to secondary target: NF-KM4(R). 04640_ Imp. Heat Sink destroyed. 04644_ NF-KM4(R) affixes Scrap Shield Fragment to Scrap Shield. 04646_ NF-KM4(R) suffers critical hit (Burn). 04646_ Sub. Monowheel melted. 04646_ Sub. Optics melted. 04646_ NF-KM4(R) destroyed. Spk. Treads falls loose from the Twisted Machinery. Scrap Shield falls loose from the Twisted Machinery. 04687_ Acquired Spk. Treads. 04712_ A7-WDZ(R) suffers critical hit (Burn). 04714_ Beamcaster destroyed. 04716_ Lgt. Treads destroyed. Map ----- +----------------------------------------------------+ | ?????????????????????????????????????????????????? | | ?????????????????????????????????????????????????? | | ##????############???????????????????????????????? | | ##???#############???####????????????????????????? | | ##??#### #### ##??? ####???????????????????????? | | ####### ## ##??? ####??????????????????????? | | ###### ####??? ####?????????????????????? | | #####??? ###?????????????????????? | | &* ## ##### ###????????????????????? | | !%%& ## ##### ###"???????????????????? | | # # ### #### ##"???????????????????? | | ###"" #### """???????????????????? | | ###""# # " """"??????????????????? | | ####"#""""" ### ???????????????????? | | ""###""" "" #### ???????????????????? | | "####"" # # "## ###?????????????????????? | | "##?##" ### ### ###?????????????????????? | | "##?##""#### ### """"##?????????????????????? | | ###?# ## # """"##?????????????????????? | | ###??? "! ##?????????????????????? | | #???? "" ##?????????????????????? | | """?????? ##"# ###?????????????????????? | | ???????? ?###" ####?????????????????????? | | #?????????#### " ## ####?????????????????????? | | ??????????## " #### ###?????????????????????? | | ??????????## "####### @##?????????????????????? | | ??????????### ###### RR###?????????????????????? | | ??????????### ?????## ??"##?????????????? | | ???????????#" ??????#### ## ##?????????????? | | ????????????????????#########? ###????????????? | | ??????????????????????######????? ##????????????? | | ?????????????????????????????????? ##????????????? | | ?????????????????????????????????????????????????? | | ?????????????????????????????????????????????????? | | ?????????????????????????????????????????????????? | | ?????????????????????????????????????????????????? | | ?????????????????????????????????????????????????? | | ?????????????????????????????????????????????????? | | ?????????????????????????????????????????????????? | | ?????????????????????????????????????????????????? | | ?????????????????????????????????????????????????? | | ?????????????????????????????????????????????????? | | ?????????????????????????????????????????????????? | | ?????????????????????????????????????????????????? | | ?????????????????????????????????????????????????? | | ?????????????????????????????????????????????????? | | ?????????????????????????????????????????????????? | | ?????????????????????????????????????????????????? | | ?????????????????????????????????????????????????? | | ?????????????????????????????????????????????????? | +----------------------------------------------------+ Best States ------------- Heat Dissipation 39 Energy Generation 12 Energy Capacity 265 Matter Stores 300 Matter Capacity 300 Sight Range 16 Robot Scan Range 14 Terrain Scan Density 10 Resistance: KI 35 Resistance: TH 35 Resistance: EX 35 Resistance: EM 35 Resistance: I 35 Resistance: S 35 Resistance: P 35 Evasion (%) 50 Recoil Reduction 2 Offensive Hacking 20 Item Schematics ----------------- Huge Storage Unit | -10/Materials | Hacked Cargo Storage Unit | -10/Materials | Hacked Hcp. Storage Unit | -10/Materials | Hacked Lrg. Storage Unit | -10/Materials | Hacked Sml. Storage Unit | -10/Materials | Hacked Med. Storage Unit | -10/Materials | Hacked Mining Laser | -10/Materials | Hacked Structural Scanner | -10/Materials | Hacked Robot Schematics ------------------ None Fabricated ------------ Nothing Repaired ---------- Nothing Studied --------- None Alien Tech Used ----------------- None Achievements -------------- None Challenges ------------ None Game ------ Seed NeutrinoBoltRegenerator Manual? 0 Play Time 00:18:58 Cumulative 295.2 hours Start 2026.01.20 @ 14:30:16 End 2026.01.20 @ 15:04:37 Sessions 1 Manual Loads 0 Difficulty Explorer Special Mode None Game No. 457 Rogue 0 Adventurer 0 Explorer 457 Win Type - Total 0 Types 0/0/0/0/0/0/0/0/0/0 Lore% 76 Gallery% 70 Achievement% 55 Wizard Run 0 Options --------- Layout 1 ASCII 0 Keyboard 0 Movement Mouse Keybinds 1 Fullscreen 1 Font 24/Smallcaps Map View 50x35 Zoom Use 0% Tactical HUD 1 Map Filters NONE Filters NONE Steam 1 RUN: 34785e68-05c1-444d-81fd-6f9bfae880f5